[Event "Torneo Nuevo Centro. Jornada 11"]
[Site "Chess.com"]
[Date "2020.08.28"]
[Round "7"]
[White "Gutierrez Marco, Dario"]
[Black "Casado Andreu, David"]
[Result "0-1"]
[WhiteElo "1815"]
[BlackElo "1583"]
[TimeControl "180+2"]
[EndTime "11:44:54 PDT"]
[Termination "Victoria de dave6635 por abandono"]

1. e4 {[%clk 0:03:01.9]} 1... e5 {[%clk 0:02:59.2]} 2. Nf3 {[%clk 0:03:02.4]}
2... Nc6 {[%clk 0:02:56.7]} 3. Bb5 {[%clk 0:03:03.3]} 3... a6 {[%clk 0:02:55.1]}
4. Ba4 {[%clk 0:03:04]} 4... Nf6 {[%clk 0:02:55.4]} 5. d3 {[%clk 0:03:04.7]}
5... Bc5 {[%clk 0:02:55.9]} 6. O-O {[%clk 0:03:05.5]} 6... b5 {[%clk 0:02:56.8]}
7. Bb3 {[%clk 0:03:00]} 7... O-O {[%clk 0:02:58.2]} 8. Nbd2 {[%clk 0:02:57.9]}
8... h6 {[%clk 0:02:58.2]} 9. c3 {[%clk 0:02:57.5]} 9... Bb6 {[%clk 0:02:58.8]}
10. Re1 {[%clk 0:02:58.6]} 10... d6 {[%clk 0:02:59.4]} 11. Nf1 {[%clk
0:02:59.1]} 11... Ne7 {[%clk 0:02:59.5]} 12. Ng3 {[%clk 0:02:59.6]} 12... Ng6
{[%clk 0:03:00.8]} 13. d4 {[%clk 0:02:58.8]} 13... Bg4 {[%clk 0:02:45]} 14. Be3
{[%clk 0:02:48.4]} 14... Nh4 {[%clk 0:02:32.3]} 15. dxe5 {[%clk 0:02:33.6]}
15... Bxf3 {[%clk 0:02:18.3]} 16. gxf3 {[%clk 0:02:31.3]} 16... dxe5 {[%clk
0:02:18.5]} 17. Qe2 {[%clk 0:02:14.5]} 17... c5 {[%clk 0:02:08.6]} 18. Rad1
{[%clk 0:02:12.5]} 18... Qe7 {[%clk 0:02:08.7]} 19. Rd2 {[%clk 0:01:44.5]} 19...
Rad8 {[%clk 0:02:07.9]} 20. Red1 {[%clk 0:01:44.7]} 20... Bc7 {[%clk 0:01:48.6]}
21. Rxd8 {[%clk 0:01:32.9]} 21... Rxd8 {[%clk 0:01:48.9]} 22. Rxd8+ {[%clk
0:01:32.4]} 22... Bxd8 {[%clk 0:01:41]} 23. a4 {[%clk 0:01:14.8]} 23... c4
{[%clk 0:01:20.9]} 24. Bd1 {[%clk 0:01:13.1]} 24... Qe6 {[%clk 0:01:20.1]} 25.
axb5 {[%clk 0:01:12.4]} 25... axb5 {[%clk 0:01:14.7]} 26. f4 {[%clk 0:00:41.4]}
26... exf4 {[%clk 0:01:08.1]} 27. Bxf4 {[%clk 0:00:40.8]} 27... Qh3 {[%clk
0:00:58.9]} 28. Qf1 {[%clk 0:00:38]} 28... Qe6 {[%clk 0:00:49.9]} 29. Qe2 {[%clk
0:00:24.4]} 29... g5 {[%clk 0:00:43.3]} 30. Bc1 {[%clk 0:00:21.4]} 30... Qh3
{[%clk 0:00:42.8]} 31. Qf1 {[%clk 0:00:22.2]} 31... Qe6 {[%clk 0:00:30.4]} 32.
Qe2 {[%clk 0:00:22.7]} 32... Bc7 {[%clk 0:00:30.6]} 33. Kh1 {[%clk 0:00:14.5]}
33... Qh3 {[%clk 0:00:25.5]} 34. Qf1 {[%clk 0:00:15.1]} 34... Qxf1+ {[%clk
0:00:24]} 35. Nxf1 {[%clk 0:00:17]} 35... Nxe4 {[%clk 0:00:22.5]} 36. Be3 {[%clk
0:00:16.3]} 36... Bf4 {[%clk 0:00:22]} 37. Kg1 {[%clk 0:00:15.9]} 37... Bxe3
{[%clk 0:00:22.9]} 38. Nxe3 {[%clk 0:00:17.8]} 38... Nd2 {[%clk 0:00:20.6]} 39.
Nd5 {[%clk 0:00:16.8]} 39... Nhf3+ {[%clk 0:00:20.7]} 40. Bxf3 {[%clk
0:00:17.4]} 40... Nxf3+ {[%clk 0:00:22.6]} 41. Kg2 {[%clk 0:00:19.3]} 41... Nd2
{[%clk 0:00:23]} 42. Nc7 {[%clk 0:00:17.1]} 42... f5 {[%clk 0:00:20.1]} 43. Nxb5
{[%clk 0:00:18]} 43... Nb3 {[%clk 0:00:19.9]} 44. Nd6 {[%clk 0:00:18.4]} 44...
Nd2 {[%clk 0:00:18.9]} 45. Nxf5 {[%clk 0:00:19.1]} 45... Kf7 {[%clk 0:00:19.8]}
46. Nxh6+ {[%clk 0:00:19.9]} 46... Kg6 {[%clk 0:00:21.7]} 47. Ng4 {[%clk
0:00:21.1]} 47... Kf5 {[%clk 0:00:23.1]} 48. Ne3+ {[%clk 0:00:21.8]} 48... Ke4
{[%clk 0:00:24.2]} 49. f3+ {[%clk 0:00:17.8]} 49... Kxe3 {[%clk 0:00:24.4]} 50.
h4 {[%clk 0:00:17.2]} 50... gxh4 {[%clk 0:00:24.9]} 51. f4 {[%clk 0:00:19.1]}
51... Kxf4 {[%clk 0:00:25.8]} 52. Kh3 {[%clk 0:00:21]} 52... Kg5 {[%clk
0:00:24.1]} 0

[Event "Torneo Nuevo Centro. Jornada 11"]
[Site "Chess.com"]
[Date "2020.08.28"]
[Round "7"]
[White "Ortiz Benavent, Alba"]
[Black "Conejero Martínez, Víctor"]
[Result "1-0"]
[WhiteElo "1198"]
[BlackElo "1351"]
[TimeControl "180+2"]
[EndTime "11:45:02 PDT"]
[Termination "Victoria de or20 por tiempo"]

1. d4 {[%clk 0:03:01.8]} 1... Nf6 {[%clk 0:02:59.2]} 2. Nf3 {[%clk 0:03:03.1]}
2... d5 {[%clk 0:02:59.3]} 3. Bf4 {[%clk 0:03:04.4]} 3... e6 {[%clk 0:02:59.5]}
4. e3 {[%clk 0:03:05.7]} 4... Bd6 {[%clk 0:03:00.1]} 5. Bg3 {[%clk 0:03:04.3]}
5... b6 {[%clk 0:02:57.6]} 6. Bd3 {[%clk 0:03:01.9]} 6... O-O {[%clk 0:02:57.7]}
7. c3 {[%clk 0:03:01.8]} 7... Ba6 {[%clk 0:02:55.1]} 8. Qc2 {[%clk 0:02:50.6]}
8... Bxd3 {[%clk 0:02:53.7]} 9. Qxd3 {[%clk 0:02:50.3]} 9... c5 {[%clk
0:02:45.1]} 10. O-O {[%clk 0:02:47.9]} 10... Bxg3 {[%clk 0:02:29.6]} 11. hxg3
{[%clk 0:02:46]} 11... Nc6 {[%clk 0:02:09.8]} 12. Nbd2 {[%clk 0:02:45.5]} 12...
Re8 {[%clk 0:02:07.2]} 13. Rfe1 {[%clk 0:02:24.5]} 13... c4 {[%clk 0:02:07.2]}
14. Qc2 {[%clk 0:02:24.1]} 14... Qd7 {[%clk 0:01:41]} 15. e4 {[%clk 0:02:21.7]}
15... e5 {[%clk 0:01:26.9]} 16. Nxe5 {[%clk 0:02:07.2]} 16... Nxe5 {[%clk
0:01:26.2]} 17. dxe5 {[%clk 0:02:06]} 17... Rxe5 {[%clk 0:01:25.8]} 18. exd5
{[%clk 0:01:58.7]} 18... Rxd5 {[%clk 0:01:21.4]} 19. Nf3 {[%clk 0:01:46.2]}
19... Re8 {[%clk 0:01:06.3]} 20. Nd4 {[%clk 0:01:36.2]} 20... Rxe1+ {[%clk
0:00:51.5]} 21. Rxe1 {[%clk 0:01:34.9]} 21... g6 {[%clk 0:00:51.7]} 22. f3
{[%clk 0:01:13.9]} 22... Qd6 {[%clk 0:00:47]} 23. Qf2 {[%clk 0:01:00.5]} 23...
Nd7 {[%clk 0:00:41.2]} 24. g4 {[%clk 0:01:00.2]} 24... Ne5 {[%clk 0:00:38.2]}
25. Re4 {[%clk 0:00:39]} 25... Nc6 {[%clk 0:00:37.1]} 26. Nxc6 {[%clk
0:00:35.6]} 26... Qxc6 {[%clk 0:00:37.5]} 27. Qe2 {[%clk 0:00:35.2]} 27... Ra5
{[%clk 0:00:23.9]} 28. Re8+ {[%clk 0:00:33.2]} 28... Kg7 {[%clk 0:00:24.3]} 29.
a3 {[%clk 0:00:25.3]} 29... Rb5 {[%clk 0:00:21.6]} 30. Re7 {[%clk 0:00:23.7]}
30... Qd6 {[%clk 0:00:15.4]} 31. Rxa7 {[%clk 0:00:21.9]} 31... Re5 {[%clk
0:00:16.3]} 32. Qf2 {[%clk 0:00:19.3]} 32... Qd1+ {[%clk 0:00:15.3]} 33. Kh2
{[%clk 0:00:20.3]} 33... Qd6 {[%clk 0:00:13.5]} 34. f4 {[%clk 0:00:19.3]} 34...
Ra5 {[%clk 0:00:09.7]} 35. Rxa5 {[%clk 0:00:19.3]} 35... bxa5 {[%clk 0:00:10.7]}
36. Qe2 {[%clk 0:00:18.7]} 36... Qxf4+ {[%clk 0:00:09.7]} 37. Kg1 {[%clk
0:00:18.2]} 37... Qc1+ {[%clk 0:00:09.8]} 38. Kf2 {[%clk 0:00:17.1]} 38... Qf4+
{[%clk 0:00:07.2]} 39. Qf3 {[%clk 0:00:17.6]} 39... Qb8 {[%clk 0:00:04.9]} 40.
Ke2 {[%clk 0:00:15.8]} 40... Qxb2+ {[%clk 0:00:05.5]} 41. Kf1 {[%clk 0:00:12.8]}
41... Qxa3 {[%clk 0:00:05.2]} 42. Qe2 {[%clk 0:00:12.7]} 42... Qb3 {[%clk
0:00:04.3]} 43. Qe5+ {[%clk 0:00:13.1]} 43... Kg8 {[%clk 0:00:03.4]} 44. Qe8+
{[%clk 0:00:13.4]} 44... Kg7 {[%clk 0:00:04.2]} 45. Qe5+ {[%clk 0:00:14.1]} 1

[Event "Torneo Nuevo Centro. Jornada 11"]
[Site "Chess.com"]
[Date "2020.08.28"]
[Round "7"]
[White "Vidarte Morales, Arturo"]
[Black "Garcia, Jhoel"]
[Result "1/2-1/2"]
[WhiteElo "2213"]
[BlackElo "2377"]
[TimeControl "180+2"]
[EndTime "11:45:06 PDT"]
[Termination "Tablas por repeticiÃ³n"]

1. c4 {[%clk 0:03:01.9]} 1... Nf6 {[%clk 0:02:57.3]} 2. Nc3 {[%clk 0:03:02.4]}
2... g6 {[%clk 0:02:58.5]} 3. e4 {[%clk 0:03:01.8]} 3... Bg7 {[%clk 0:02:59.3]}
4. d4 {[%clk 0:03:03.1]} 4... d6 {[%clk 0:03:00.5]} 5. f3 {[%clk 0:03:04]} 5...
O-O {[%clk 0:03:01.8]} 6. Bg5 {[%clk 0:03:05]} 6... Nc6 {[%clk 0:02:45.3]} 7.
Nge2 {[%clk 0:03:04.4]} 7... e5 {[%clk 0:02:46.5]} 8. d5 {[%clk 0:03:03.9]} 8...
Nd4 {[%clk 0:02:33.5]} 9. Nxd4 {[%clk 0:03:03.4]} 9... exd4 {[%clk 0:02:34.9]}
10. Qxd4 {[%clk 0:03:04.1]} 10... h6 {[%clk 0:02:35.2]} 11. Bxf6 {[%clk
0:03:02.1]} 11... Bxf6 {[%clk 0:02:35.9]} 12. Qd2 {[%clk 0:03:03.4]} 12... Bg7
{[%clk 0:02:29.4]} 13. Bd3 {[%clk 0:03:00.1]} 13... c5 {[%clk 0:02:27.9]} 14.
O-O {[%clk 0:02:51.3]} 14... a6 {[%clk 0:02:25.3]} 15. a4 {[%clk 0:02:47.7]}
15... Bd7 {[%clk 0:02:16.2]} 16. a5 {[%clk 0:02:38.9]} 16... b6 {[%clk
0:02:14.2]} 17. axb6 {[%clk 0:02:39.4]} 17... Qxb6 {[%clk 0:02:15.6]} 18. Na4
{[%clk 0:02:39.8]} 18... Bxa4 {[%clk 0:02:11.7]} 19. Rxa4 {[%clk 0:02:40]} 19...
Bxb2 {[%clk 0:02:05]} 20. Rb1 {[%clk 0:02:35.1]} 20... Rfb8 {[%clk 0:01:49.4]}
21. Kf1 {[%clk 0:02:26.3]} 21... Qb3 {[%clk 0:01:41.8]} 22. Qc2 {[%clk 0:02:25]}
22... Qxc2 {[%clk 0:01:35.7]} 23. Bxc2 {[%clk 0:02:24.7]} 23... Bd4 {[%clk
0:01:17.6]} 24. Rxb8+ {[%clk 0:02:18.1]} 24... Rxb8 {[%clk 0:01:17.7]} 25. Ke2
{[%clk 0:02:18.1]} 25... Rb6 {[%clk 0:01:05]} 26. g3 {[%clk 0:02:16.4]} 26...
Bc3 {[%clk 0:01:01.1]} 27. Kd3 {[%clk 0:02:11.4]} 27... Bb4 {[%clk 0:01:01.1]}
28. Ra2 {[%clk 0:02:09]} 28... a5 {[%clk 0:00:59.4]} 29. Ba4 {[%clk 0:02:10]}
29... Kg7 {[%clk 0:00:59.8]} 30. f4 {[%clk 0:02:08.3]} 30... f6 {[%clk
0:00:59.9]} 31. Bb5 {[%clk 0:02:07.5]} 31... Rb7 {[%clk 0:01:00.3]} 32. Bc6
{[%clk 0:02:05.5]} 32... Re7 {[%clk 0:01:01]} 33. Re2 {[%clk 0:02:02.4]} 33...
h5 {[%clk 0:01:01.9]} 34. Bb5 {[%clk 0:02:00.7]} 34... g5 {[%clk 0:01:01.9]} 35.
Ba4 {[%clk 0:01:58.4]} 35... Kg6 {[%clk 0:01:00.1]} 36. e5 {[%clk 0:01:52.8]}
36... fxe5 {[%clk 0:00:52.6]} 37. fxe5 {[%clk 0:01:53]} 37... Rxe5 {[%clk
0:00:33.4]} 38. Rxe5 {[%clk 0:01:52.6]} 38... dxe5 {[%clk 0:00:35]} 39. d6
{[%clk 0:01:51]} 39... Kf6 {[%clk 0:00:34.1]} 40. d7 {[%clk 0:01:47]} 40... Ke7
{[%clk 0:00:34.4]} 41. Ke4 {[%clk 0:01:47.6]} 41... Bc3 {[%clk 0:00:35.6]} 42.
h3 {[%clk 0:01:44.7]} 42... h4 {[%clk 0:00:35.3]} 43. g4 {[%clk 0:01:41.7]}
43... Kd8 {[%clk 0:00:25.9]} 44. Kf5 {[%clk 0:01:41.9]} 44... Bd2 {[%clk
0:00:25.4]} 45. Kxe5 {[%clk 0:01:41.8]} 45... Bf4+ {[%clk 0:00:26.6]} 46. Ke4
{[%clk 0:01:40.7]} 46... Bd6 {[%clk 0:00:26.2]} 47. Kd5 {[%clk 0:01:41]} 47...
Be7 {[%clk 0:00:23.3]} 48. Kc6 {[%clk 0:01:42]} 48... Bf8 {[%clk 0:00:20.7]} 49.
Kb6 {[%clk 0:01:41]} 49... Be7 {[%clk 0:00:21]} 50. Kxa5 {[%clk 0:01:41.5]}
50... Bf6 {[%clk 0:00:22.6]} 51. Kb6 {[%clk 0:01:41.4]} 51... Bd4 {[%clk
0:00:24.5]} 52. Kc6 {[%clk 0:01:42]} 52... Be3 {[%clk 0:00:25.5]} 53. Kd6 {[%clk
0:01:42.6]} 53... Bd4 {[%clk 0:00:25.5]} 54. Ke6 {[%clk 0:01:43.3]} 54... Be3
{[%clk 0:00:25.9]} 55. Ke5 {[%clk 0:01:42.5]} 55... Bd4+ {[%clk 0:00:26]} 56.
Ke4 {[%clk 0:01:41.8]} 56... Bf6 {[%clk 0:00:25.4]} 57. Bb5 {[%clk 0:01:42.5]}
57... Bd4 {[%clk 0:00:25.9]} 58. Kf5 {[%clk 0:01:39.3]} 58... Be3 {[%clk
0:00:26.5]} 59. Ke5 {[%clk 0:01:38.5]} 59... Bd4+ {[%clk 0:00:27]} 60. Ke4
{[%clk 0:01:38.3]} 60... Bf6 {[%clk 0:00:27.6]} 61. Kf5 {[%clk 0:01:36.3]} 61...
Be7 {[%clk 0:00:26.5]} 62. Ke6 {[%clk 0:01:35.7]} 62... Bf8 {[%clk 0:00:27.4]}
63. Kf7 {[%clk 0:01:32.3]} 63... Be7 {[%clk 0:00:28.1]} 64. Kg7 {[%clk 0:01:32]}
64... Bd6 {[%clk 0:00:28.3]} 65. Kg6 {[%clk 0:01:30.1]} 65... Bf4 {[%clk
0:00:29.4]} 66. Kf5 {[%clk 0:01:26.1]} 66... Be3 {[%clk 0:00:28.9]} 67. Ke6
{[%clk 0:01:26.2]} 67... Bf4 {[%clk 0:00:28.7]} 68. Kd5 {[%clk 0:01:22.5]} 68...
Be3 {[%clk 0:00:29.4]} 69. Ke4 {[%clk 0:01:22.5]} 69... Bf4 {[%clk 0:00:29.7]}
70. Kf5 {[%clk 0:01:22.9]} 70... Be3 {[%clk 0:00:30.2]} 1/2-1

[Event "Torneo Nuevo Centro. Jornada 11"]
[Site "Chess.com"]
[Date "2020.08.28"]
[Round "7"]
[White "Donate Peris, Jose Manuel"]
[Black "Alvarez Usina, Jordi"]
[Result "1/2-1/2"]
[WhiteElo "1516"]
[BlackElo "1276"]
[TimeControl "180+2"]
[EndTime "11:45:11 PDT"]
[Termination "Partida en tablas por mutuo acuerdo"]

1. d4 {[%clk 0:03:01.9]} 1... d5 {[%clk 0:02:58.2]} 2. c4 {[%clk 0:03:02.5]}
2... c6 {[%clk 0:02:50.5]} 3. cxd5 {[%clk 0:03:02.6]} 3... cxd5 {[%clk
0:02:49.3]} 4. Nf3 {[%clk 0:03:03.5]} 4... Bf5 {[%clk 0:02:50.4]} 5. Nc3 {[%clk
0:03:03.4]} 5... e6 {[%clk 0:02:51]} 6. a3 {[%clk 0:03:03.5]} 6... Nf6 {[%clk
0:02:51.7]} 7. Bg5 {[%clk 0:03:02.5]} 7... Be7 {[%clk 0:02:51.3]} 8. e3 {[%clk
0:03:02.6]} 8... Nc6 {[%clk 0:02:51]} 9. Bd3 {[%clk 0:03:01.2]} 9... Ne4 {[%clk
0:02:48.6]} 10. Bxe7 {[%clk 0:02:59]} 10... Qxe7 {[%clk 0:02:48.2]} 11. O-O
{[%clk 0:02:55.2]} 11... O-O {[%clk 0:02:46.2]} 12. Rc1 {[%clk 0:02:50.7]} 12...
h6 {[%clk 0:02:43.9]} 13. Bb5 {[%clk 0:02:42.3]} 13... Rac8 {[%clk 0:02:42.5]}
14. Ne2 {[%clk 0:02:37.2]} 14... Rc7 {[%clk 0:02:41.4]} 15. Ng3 {[%clk
0:02:37.2]} 15... Bh7 {[%clk 0:02:39.8]} 16. Nxe4 {[%clk 0:02:34.6]} 16... Bxe4
{[%clk 0:02:36.3]} 17. Nd2 {[%clk 0:02:32.1]} 17... Bg6 {[%clk 0:02:35.6]} 18.
f3 {[%clk 0:02:29.9]} 18... Rfc8 {[%clk 0:02:35.2]} 19. Rf2 {[%clk 0:02:28.9]}
19... a6 {[%clk 0:02:34.6]} 20. Ba4 {[%clk 0:02:27.1]} 20... Na7 {[%clk
0:02:33.3]} 21. Rxc7 {[%clk 0:02:22.6]} 21... Qxc7 {[%clk 0:02:32.9]} 22. e4
{[%clk 0:02:15.7]} 22... Qc1 {[%clk 0:02:25.6]} 23. Rf1 {[%clk 0:02:05.5]} 23...
Qxd1 {[%clk 0:02:24.1]} 24. Rxd1 {[%clk 0:02:05.4]} 24... dxe4 {[%clk
0:02:24.8]} 25. Nxe4 {[%clk 0:02:03.5]} 25... Rd8 {[%clk 0:02:13.6]} 26. Nc5
{[%clk 0:01:56.6]} 26... Nc6 {[%clk 0:01:46.4]} 27. Nxb7 {[%clk 0:01:42.6]}
27... Rxd4 {[%clk 0:01:45.1]} 28. Rxd4 {[%clk 0:01:37.2]} 28... Nxd4 {[%clk
0:01:45.1]} 29. Nc5 {[%clk 0:01:32.6]} 29... a5 {[%clk 0:01:36.8]} 30. Nb7
{[%clk 0:01:29.9]} 30... Bd3 {[%clk 0:01:31.4]} 31. Nxa5 {[%clk 0:01:26]} 31...
Kf8 {[%clk 0:01:31.2]} 32. Nc6 {[%clk 0:01:21.6]} 32... Nxc6 {[%clk 0:01:28.5]}
33. Bxc6 {[%clk 0:01:21.5]} 33... Bc4 {[%clk 0:01:27.3]} 34. Kf2 {[%clk
0:01:19.3]} 34... Ke7 {[%clk 0:01:27.7]} 35. Ke3 {[%clk 0:01:13.8]} 35... e5
{[%clk 0:01:28.1]} 36. Be4 {[%clk 0:01:02.1]} 36... Kd6 {[%clk 0:01:23.3]} 37.
Bc2 {[%clk 0:01:02]} 37... Bd5 {[%clk 0:01:16.7]} 38. b4 {[%clk 0:00:58.6]}
38... Kc6 {[%clk 0:01:16.3]} 39. a4 {[%clk 0:00:58.7]} 39... Kb6 {[%clk
0:01:15.4]} 40. Be4 {[%clk 0:00:58.2]} 40... Bb3 {[%clk 0:01:13.9]} 41. a5+
{[%clk 0:00:54.8]} 41... Kb5 {[%clk 0:00:45.1]} 42. a6 {[%clk 0:00:54.3]} 42...
Kxa6 {[%clk 0:00:43.1]} 43. Bc6 {[%clk 0:00:51.2]} 43... Kb6 {[%clk 0:00:42.2]}
44. b5 {[%clk 0:00:50.1]} 44... f6 {[%clk 0:00:37.4]} 45. f4 {[%clk 0:00:46.3]}
45... exf4+ {[%clk 0:00:28.5]} 46. Kxf4 {[%clk 0:00:46.4]} 46... Be6 {[%clk
0:00:28.5]} 47. g4 {[%clk 0:00:41.9]} 47... Kc5 {[%clk 0:00:25.1]} 48. h4 {[%clk
0:00:39]} 48... g5+ {[%clk 0:00:19.7]} 49. hxg5 {[%clk 0:00:39.2]} 49... hxg5+
{[%clk 0:00:19.7]} 50. Kg3 {[%clk 0:00:39.4]} 50... Kb6 {[%clk 0:00:19.2]} 51.
Be8 {[%clk 0:00:38.4]} 51... Kc5 {[%clk 0:00:18.1]} 52. Kf3 {[%clk 0:00:32.1]}
52... Kb6 {[%clk 0:00:16]} 53. Bc6 {[%clk 0:00:30.3]} 53... Kc5 {[%clk 0:00:14]}
1/2-1

[Event "Torneo Nuevo Centro. Jornada 11"]
[Site "Chess.com"]
[Date "2020.08.28"]
[Round "7"]
[White "Gimenez Saiz, Jose Raul"]
[Black "Conon, Catalin"]
[Result "1/2-1/2"]
[WhiteElo "1831"]
[BlackElo "1918"]
[TimeControl "180+2"]
[EndTime "11:45:16 PDT"]
[Termination "Tablas por rey ahogado"]

1. d4 {[%clk 0:03:01.9]} 1... Nf6 {[%clk 0:03:00.8]} 2. e3 {[%clk 0:03:02.8]}
2... g6 {[%clk 0:03:01.5]} 3. Bd3 {[%clk 0:03:03.1]} 3... Bg7 {[%clk 0:03:02.7]}
4. f4 {[%clk 0:03:04.7]} 4... O-O {[%clk 0:03:03.4]} 5. Nf3 {[%clk 0:03:06.6]}
5... d6 {[%clk 0:03:03.8]} 6. O-O {[%clk 0:03:07.3]} 6... Nbd7 {[%clk
0:03:04.8]} 7. c4 {[%clk 0:03:06.7]} 7... Re8 {[%clk 0:03:05.9]} 8. e4 {[%clk
0:03:07.3]} 8... e5 {[%clk 0:03:06.8]} 9. fxe5 {[%clk 0:03:07.8]} 9... dxe5
{[%clk 0:03:07.9]} 10. d5 {[%clk 0:03:08.4]} 10... Nc5 {[%clk 0:03:09.1]} 11.
Nc3 {[%clk 0:03:04.9]} 11... c6 {[%clk 0:03:02.2]} 12. Be3 {[%clk 0:02:53.7]}
12... Nxd3 {[%clk 0:03:02.8]} 13. Qxd3 {[%clk 0:02:54.3]} 13... cxd5 {[%clk
0:03:04.2]} 14. cxd5 {[%clk 0:02:53.2]} 14... Ng4 {[%clk 0:03:04.2]} 15. Bg5
{[%clk 0:02:39.1]} 15... Qb6+ {[%clk 0:03:02.2]} 16. Kh1 {[%clk 0:02:24.3]}
16... Nf2+ {[%clk 0:03:03.2]} 17. Rxf2 {[%clk 0:02:24.6]} 17... Qxf2 {[%clk
0:03:05.1]} 18. Be3 {[%clk 0:02:23.7]} 18... Qxb2 {[%clk 0:03:03.2]} 19. Rb1
{[%clk 0:02:24]} 19... Qa3 {[%clk 0:03:03.5]} 20. Qd2 {[%clk 0:02:20]} 20... Bg4
{[%clk 0:03:02]} 21. Rxb7 {[%clk 0:02:15.3]} 21... Bxf3 {[%clk 0:03:02.9]} 22.
gxf3 {[%clk 0:02:14]} 22... Rac8 {[%clk 0:03:04]} 23. Ne2 {[%clk 0:02:05.7]}
23... a5 {[%clk 0:02:36]} 24. Rb3 {[%clk 0:01:58.3]} 24... Qd6 {[%clk
0:02:33.6]} 25. a4 {[%clk 0:01:27.9]} 25... Rc4 {[%clk 0:02:21.3]} 26. Kg2
{[%clk 0:01:22.8]} 26... Rxa4 {[%clk 0:02:21.7]} 27. Rb6 {[%clk 0:01:21.8]}
27... Qa3 {[%clk 0:02:16.2]} 28. Kh3 {[%clk 0:00:57.9]} 28... Qa2 {[%clk
0:01:56.9]} 29. Rb2 {[%clk 0:00:57.2]} 29... Qc4 {[%clk 0:01:54.6]} 30. Rc2
{[%clk 0:00:57.5]} 30... Qb4 {[%clk 0:01:53.9]} 31. Nc3 {[%clk 0:00:54.9]} 31...
Rc8 {[%clk 0:01:52.6]} 32. Nxa4 {[%clk 0:00:53.1]} 32... Rxc2 {[%clk 0:01:40.9]}
33. Qxc2 {[%clk 0:00:46.5]} 33... h5 {[%clk 0:01:42.8]} 34. Nb6 {[%clk
0:00:40.7]} 34... Qe1 {[%clk 0:01:20]} 35. Qf2 {[%clk 0:00:23]} 35... Qb4 {[%clk
0:01:12.8]} 36. Bc5 {[%clk 0:00:23.1]} 36... Qb5 {[%clk 0:00:59.5]} 37. d6
{[%clk 0:00:20.9]} 37... Qe8 {[%clk 0:00:55.4]} 38. d7 {[%clk 0:00:21.6]} 38...
Qd8 {[%clk 0:00:56.7]} 39. Qd2 {[%clk 0:00:20.9]} 39... g5 {[%clk 0:00:26]} 40.
Qxa5 {[%clk 0:00:19.6]} 40... g4+ {[%clk 0:00:17.2]} 41. fxg4 {[%clk 0:00:19.8]}
41... hxg4+ {[%clk 0:00:17.5]} 42. Kxg4 {[%clk 0:00:19.1]} 42... Bh6 {[%clk
0:00:19.4]} 43. Qa8 {[%clk 0:00:19.1]} 43... Bg5 {[%clk 0:00:16.3]} 44. Qxd8+
{[%clk 0:00:18.3]} 44... Bxd8 {[%clk 0:00:18.2]} 45. Kf5 {[%clk 0:00:17.8]}
45... f6 {[%clk 0:00:18.1]} 46. Nd5 {[%clk 0:00:16.9]} 46... Kf7 {[%clk
0:00:18.7]} 47. h4 {[%clk 0:00:15]} 47... Ba5 {[%clk 0:00:16.4]} 48. h5 {[%clk
0:00:14.7]} 48... Bd8 {[%clk 0:00:14.7]} 49. h6 {[%clk 0:00:14.6]} 49... Kg8
{[%clk 0:00:15.9]} 50. Nxf6+ {[%clk 0:00:14.5]} 50... Kh8 {[%clk 0:00:17.8]} 51.
Kg6 {[%clk 0:00:12.9]} 51... Be7 {[%clk 0:00:17.3]} 52. h7 {[%clk 0:00:11.6]}
52... Bf8 {[%clk 0:00:14.4]} 53. d8=Q {[%clk 0:00:11.8]} 1/2-1